Cogmind - Beta 13 @@@ ROGUE MODE // 2024.06.26 @ 20:52:20 Player: Wabbajack Result: Destroyed by L-31 Rogue with Katana Performance ------------- Evolutions (1) 500 Regions Visited (3) 600 Robots Destroyed (28) 140 Value Destroyed (853) 853 Prototype IDs (2) 40 Alien Tech Used (0) 0 Bonus (0) 0 TOTAL SCORE: 2133 Bonus ------- None Cogmind --------- Core Integrity 0/400 Matter 40/300 Energy 99/100 System Corruption 0% Temperature Cool (0) Movement Core (100) Ox1 Location -9/Materials Parts ------- > --- POWER (1) -------- (None) > --- PROPULSION (3) --- (None) > --- UTILITY (3) ------ Small Storage Unit Advanced Targeting Computer > --- WEAPON (2) ------- (None) > --- INVENTORY (8) ---- Improved Heat Sink Large Storage Unit Improved Terrain Scanner Medium Armor Plating Shock Bomb Launcher Mini Grenade Launcher Peak State ------------ > --- POWER ------------ Improved Ion Engine > --- PROPULSION ------- Aluminum Leg Aluminum Leg > --- UTILITY ---------- Small Storage Unit Small Matter Pod Advanced Targeting Computer > --- WEAPON ----------- Heavy Assault Rifle Shock Bomb Launcher > --- INVENTORY -------- Ion Engine Improved Heat Sink Large Storage Unit Improved Terrain Scanner Medium Armor Plating Autogun Autogun Mini Grenade Launcher [Rating: 15] Favorites ----------- Power Light Ion Engine Engine Light Ion Engine Propulsion Wheel Leg Aluminum Leg Wheel Wheel Utility Small Storage Unit Device Shield Generator Storage Small Storage Unit Processor Advanced Targeting Computer Weapon Autogun Ballistic Gun Autogun Launcher Grenade Launcher Build | -11 -10 -10 -9 ------- Run | Yrd Mat Min Mat Slots Evolved 2 | . . . 2 Power . | . . . . Propulsion 1 | . . . 1 Utility 1 | . . . 1 Weapon . | . . . . Parts Attached 42 | 6 14 12 10 Power 5 | 1 1 1 2 Engine 5 | 1 1 1 2 Core . | . . . . Reactor . | . . . . Propulsion 9 | 2 3 4 . Treads . | . . . . Leg 4 | . . 4 . Wheel 5 | 2 3 . . Hover . | . . . . Flight . | . . . . Utility 6 | 1 2 1 2 Device 2 | . 1 1 . Storage 3 | 1 1 . 1 Processor 1 | . . . 1 Hackware . | . . . . Protection . | . . . . Artifact . | . . . . Weapon 22 | 2 8 6 6 Energy Gun . | . . . . Energy Cannon . | . . . . Ballistic Gun 15 | 2 6 3 4 Ballistic Cannon . | . . . . Launcher 7 | . 2 3 2 Special Weapon . | . . . . Impact Weapon . | . . . . Slashing Weapon . | . . . . Piercing Weapon . | . . . . Special Melee Weapon . | . . . . Unidentified Prototypes . | . . . . Parts Lost 8 | . . 2 6 Power 1 | . . . 1 Propulsion 3 | . . 1 2 Utility 2 | . . 1 1 Weapon 2 | . . . 2 Highest Loss Streak 6 | . . 1 6 To Critical Strikes . | . . . . Average Slot Usage (%) 91 | . 97 94 80 Engine 12 | . 14 14 9 Leg 10 | . . 10 19 Wheel 14 | . 27 16 . Device 9 | . 12 9 5 Storage 15 | . 14 14 20 Processor 1 | . . . 5 Ballistic Gun 24 | . 26 26 18 Launcher 1 | . . 1 2 Naked Turns . | . . . . Heaviest Build 22 | 12 16 18 22 Greatest Support 20 | 20 20 20 20 Greatest Overweight (x) 2 | . 1 1 2 Average Overweight (x) . | . . . . Largest Inventory Capacity 8 | 8 8 8 8 Average Capacity 7 | 7 7 8 8 Most Carried 8 | 2 8 8 8 Average Carried 7 | . 6 7 7 Final Capacity 8 | 8 8 8 8 Final Carried 8 | 1 8 8 6 Class Distribution -------------------- 75% | Mutant 24% | Scavenger-Mutant Dominant Class ---------------- Mutant | -10/Materials Mutant | -10/Mines Scavenger-Mutant | -9/Materials Resources | -11 -10 -10 -9 ----------- Run | Yrd Mat Min Mat Matter Collected 909 | 174 410 208 117 Remotely . | . . . . Salvage Created 798 | . 185 355 258 Parts 56 | . 18 21 17 Haulers Intercepted . | . . . . Recyclers Shooed 2 | . 1 . 1 Parts Field Recycled . | . . . . Retrieved Matter . | . . . . Parts Self-Destructed . | . . . . Prevented . | . . . . Kills | -11 -10 -10 -9 ------- Run | Yrd Mat Min Mat Combat Hostiles Destroyed 24 | . 6 12 6 Guns 7 | . 2 4 1 AOE 17 | . 4 8 5 Classes Destroyed 8 | . 4 2 2 Worker 1 | . 1 . . Tunneler 1 | . . 1 . Operator 1 | . . . 1 Watcher 2 | . 2 . . Swarmer 3 | . 3 . . Grunt 19 | . 3 11 5 Sentry 1 | . . . 1 Assembled 1 | . . 1 . Best Kill Streak 6 | . 3 6 6 Combat Bots Only 5 | . 3 5 5 Max Kills in Single Turn 3 | . 2 3 3 Gunslinging . | . . . . Exploded 3 | . 2 3 2 Melee . | . . . . Uniques/NPCs Destroyed . | . . . . Combat | -11 -10 -10 -9 -------- Run | Yrd Mat Min Mat Hostile Shots Fired 112 | . 22 28 62 Missed 27 | . 8 10 9 Damage Taken 1364 | . 137 233 994 Core 438 | . 13 20 405 Absorbed by Shields 123 | . 53 70 . Core Remaining (%) 93 | 100 . 86 . Volleys Fired 67 | . 17 29 21 Largest 2 | . 2 2 2 Hottest 59 | . 53 53 59 Shots Fired 127 | . 34 55 38 Gun 104 | . 28 44 32 Cannon . | . . . . Launcher 23 | . 6 11 6 Special . | . . . . Kinetic 104 | . 28 44 32 Thermal . | . . . . Explosive 17 | . 6 11 . Electromagnetic 6 | . . . 6 Robot Hit Streak 7 | . 6 5 7 Robot Miss Streak 4 | . 2 4 3 Penetration Max . | . . . . Secondary Targets . | . . . . Shots Hit Robots 56 | . 16 21 19 Core Hits 47 | . 14 22 11 Critical Kills . | . . . . Critical Parts Destroyed . | . . . . Critical Strikes . | . . . . Melee Attacks . | . . . . Impact . | . . . . Slashing . | . . . . Piercing . | . . . . Sneak Attacks . | . . . . Combat Hostiles . | . . . . Follow-up Attacks . | . . . . Damage Inflicted 1962 | . 504 862 596 Guns 803 | . 238 327 238 Cannons . | . . . . Explosions 1137 | . 259 520 358 Melee . | . . . . Ramming 22 | . 7 15 . Kinetic 803 | . 238 327 238 Thermal 32 | . . . 32 Explosive 926 | . 259 520 147 Electromagnetic 179 | . . . 179 Impact . | . . . . Slashing . | . . . . Piercing . | . . . . Highest Corruption . | . . . . Average Corruption . | . . . . Corruption Purged . | . . . . Corruption Blocked . | . . . . Overload Shots . | . . . . Overflow Damage 4 | . . 3 1 Projectiles . | . . . . Explosions 4 | . . 3 1 Melee . | . . . . Knockbacks . | . . . . Impact . | . . . . Kinetic . | . . . . Secondary . | . . . . Self-Inflicted Damage 153 | . 37 91 25 Shots 8 | . 1 5 2 Rammed 2 | . 1 1 . Targets Rammed 5 | . 1 3 1 Kicked 3 | . . 2 1 Crushed . | . . . . Highest Temperature 36 | . 36 36 22 Average Temperature 10 | . 10 11 5 Received Heat Transfer 366 | . 44 112 210 Siege Activations . | . . . . Robots Corrupted . | . . . . Combat Hostiles . | . . . . Parts Fried . | . . . . Impact Corruptions . | . . . . Robots Melted . | . . . . Combat Hostiles . | . . . . Parts Melted . | . . . . Heat Transferred 50 | . . . 50 Parts Sabotaged . | . . . . Parts Stolen . | . . . . Parts Stripped . | . . . . Power Chain Reactions 3 | . . . 3 Alert | -11 -10 -10 -9 ------- Run | Yrd Mat Min Mat Peak Influence 374 | . 298 253 374 Initial 115 | . . 115 98 Average 131 | . 126 113 174 Maximum Alert Level 1 | . 1 1 1 Low Security (%) 84 | 100 79 93 73 Level 1 15 | . 20 6 26 Level 2 . | . . . . Level 3 . | . . . . Level 4 . | . . . . Level 5 . | . . . . High Security . | . . . . Max Security . | . . . . Squads Dispatched 3 | . . . 3 Investigation 2 | . . . 2 Extermination . | . . . . Reinforcement 1 | . . . 1 Assault . | . . . . Garrison . | . . . . Intercept . | . . . . Searches Triggered . | . . . . Construction Impeded . | . . . . Haulers Reinforced . | . . . . Active Scanning Responses . | . . . . Cargo Convoy Interrupts . | . . . . Stealth | -11 -10 -10 -9 --------- Run | Yrd Mat Min Mat Distress Signals 4 | . 1 2 1 Communications Jammed . | . . . . Distress Signals . | . . . . Times Spotted 41 | . 12 13 16 Peak Tracking Total 5 | . 4 5 5 Tactical Retreats 3 | . 2 1 . Traps | -11 -10 -10 -9 ------- Run | Yrd Mat Min Mat Traps Triggered 2 | . 2 . . Indirectly . | . . . . Trap Hack Attempts . | . . . . Triggered . | . . . . Disarmed . | . . . . Reprogrammed . | . . . . Reused . | . . . . Traps Extracted . | . . . . Installed . | . . . . Triggered . | . . . . Machines | -11 -10 -10 -9 ---------- Run | Yrd Mat Min Mat Machines Disabled 5 | . 1 1 3 Max in Single Turn 2 | . 1 1 2 Machines Repaired . | . . . . Machines Dismantled . | . . . . Machines Sabotaged . | . . . . Overloaded Fab Kills . | . . . . Hacking | -11 -10 -10 -9 --------- Run | Yrd Mat Min Mat Machines Accessed 4 | . 2 . 2 Terminals 4 | . 2 . 2 Fabricators . | . . . . Repair Stations . | . . . . Recycling Units . | . . . . Scanalyzers . | . . . . Garrison Access . | . . . . Total Hacks 14 | . 8 . 6 Successful 2 | . 2 . . Failed 12 | . 6 . 6 Catastrophic 5 | . 2 . 3 Database Lockouts . | . . . . Manual 9 | . 5 . 4 Terminals 14 | . 8 . 6 Fabricators . | . . . . Repair Stations . | . . . . Recycling Units . | . . . . Scanalyzers . | . . . . Garrison Access . | . . . . Terminal Hacks 2 | . 2 . . Prototype ID Bank 1 | . 1 . . Alert Level 1 | . 1 . . Fabricator Hacks . | . . . . Repair Station Hacks . | . . . . Recycling Unit Hacks . | . . . . Scanalyzer . | . . . . Garrison Access Hacks . | . . . . Unauthorized Hacks . | . . . . Terminals . | . . . . Fabricators . | . . . . Repair Stations . | . . . . Recycling Units . | . . . . Scanalyzers . | . . . . Garrison Access . | . . . . Data Cores Recovered . | . . . . Used . | . . . . Hacking Detections 3 | . 1 . 2 Full Trace Events 3 | . 1 . 2 Feedback Events . | . . . . Feedback Blocked . | . . . . Robot Schematics Acquired . | . . . . Robots Built . | . . . . Authchips . | . . . . Time . | . . . . Total Robot Build Rating . | . . . . Part Schematics Acquired . | . . . . Parts Built . | . . . . Authchips . | . . . . Time . | . . . . Total Part Build Rating . | . . . . Parts Repaired . | . . . . Time . | . . . . Parts Recycled . | . . . . Recycled Matter . | . . . . Retrieved Matter . | . . . . Retrieved Components . | . . . . Parts Scanalyzed . | . . . . Part Schematics Acquired . | . . . . Parts Damaged . | . . . . Bothacking | -11 -10 -10 -9 ------------ Run | Yrd Mat Min Mat Used RIF Installer . | . . . . Robots Hacked . | . . . . Non-combat . | . . . . Combat . | . . . . Robot Hacks Applied . | . . . . Relay Couplers Released . | . . . . Fabnet Peak Effective % . | . . . . Robots Rewired . | . . . . Allies Hacked . | . . . . Hacks Repelled . | . . . . Allies | -11 -10 -10 -9 -------- Run | Yrd Mat Min Mat Total Allies . | . . . . Largest Group . | . . . . Highest-Rated Group . | . . . . Highest-Rated Ally . | . . . . Total Orders . | . . . . Ally Attacks . | . . . . Total Damage . | . . . . Kills . | . . . . Allies Corrupted . | . . . . Allies Melted . | . . . . Intel | -11 -10 -10 -9 ------- Run | Yrd Mat Min Mat Robot Analysis Total . | . . . . Derelict Logs Recovered 1 | . . 1 . Drone Launches . | . . . . Drone Recoveries . | . . . . Exploration | -11 -10 -10 -9 ------------- Run | Yrd Mat Min Mat Turns Passed 1466 | 34 336 680 416 Spaces Moved 1005 | 30 323 390 262 Core 25 | 3 . . 22 Treads . | . . . . Legs 425 | . . 185 240 Wheels 555 | 27 323 205 . Hover . | . . . . Flight . | . . . . Fastest Speed 50 | 50 80 80 100 Average Speed 100 | 77 80 99 127 Slowest Speed 190 | 80 95 190 190 Overloaded Moves . | . . . . Propulsion Burnouts . | . . . . Robots Hopped . | . . . . Cave-ins Triggered . | . . . . Exploration Rate (%) 40 | 4 44 79 34 Regions Visited 3 Branch Regions 1 Pre-discovered Areas . | . . . . Known Exits Taken 1 | . . 1 . Unknown Exits Taken 2 | 1 1 . . Scrap Searched . | . . . . Spaces Dug . | . . . . Terrain Destroyed 129 | . 38 46 45 Melee . | . . . . Projectile . | . . . . AOE 129 | . 38 46 45 Terrain Rammed . | . . . . Walls Destroyed . | . . . . Machines Disabled . | . . . . Actions | -11 -10 -10 -9 --------- Run | Yrd Mat Min Mat Total 1347 | 38 367 630 312 Wait 200 | . . 193 7 Move 1002 | 29 322 389 262 Hop . | . . . . Pick Up 15 | 2 8 . 5 Fast Attach 15 | 6 6 3 . Attach 3 | . . . 3 Detach . | . . . . Swap 24 | . 8 9 7 Drop 16 | 1 5 4 6 Fire 67 | . 17 29 21 Melee . | . . . . Ram 2 | . 1 1 . Kick 3 | . . 2 1 Crush . | . . . . Escape Stasis . | . . . . Rewire . | . . . . Trap . | . . . . Miscellaneous . | . . . . Route ------- -11/Scrapyard -10/Materials -10/Mines (discovered 2 exits: *Mat x2) -9/Materials (discovered 1 exit: [*Mat]) History --------- Turn | Location | Event 21 | -11/Scrapyard | Discovered new exit (range 15) 35 | -11/Scrapyard | Entered Materials 159 | -10/Materials | Discovered new exit (range 14) 338 | -10/Materials | Build established: Mutant 371 | -10/Materials | Entered Mines 410 | -10/Mines | Identified exit to Materials 486 | -10/Mines | Excavation squad dispatched 486 | -10/Mines | A large section of the Mines collapsed 736 | -10/Mines | Excavation squad dispatched 986 | -10/Mines | Excavation squad dispatched 1037 | -10/Mines | Discovered exit to Materials (range 10) 1051 | -10/Mines | Entered Materials 1051 | -9/Materials | Evolved 2 slots: Propulsion x1, Utility x1 1357 | -9/Materials | Build established: Scavenger-Mutant 1394 | -9/Materials | Core integrity fell below 50% 1433 | -9/Materials | Core integrity fell below 20% 1445 | -9/Materials | Discovered new exit (range 16) 1467 | -9/Materials | Destroyed by L-31 Rogue with Katana Last Messages --------------- 01395_ K-01 Serf collects debris. 01399_ Sml. Matter Pod destroyed. 01401_ Hvy. Assault Rifle destroyed. 01401_ K-01 Serf collects debris. 01401_ Acquired 3 matter. 01404_ G-34 Mercenary destroyed. 01404_ U-05 Engineer lays Concrete. 01405_ K-01 Serf collects debris. 01406_ U-05 Engineer builds a Wall. 01408_ K-01 Serf collects debris. 01409_ Ion Engine severed. 01410_ Critical hit (Burn: +37). 01410_ U-05 Engineer lays Concrete. 01418_ R-06 Scavenger collects Corrupted Hacking Suite. 01421_ R-06 Scavenger collects Ion Engine. 01429_ Autogun destroyed. 01438_ Aluminum Leg destroyed. 01445_ EXIT=FOUND 01460_ Autogun severed. Map ----- +----------------------------------------------------+ | | | | | | | | | | | | | | | | | | | | | | | | | | | | | | | | | | | ????????????????????????????????????????????? | | ????????????????????????????????????????????? | | ???????????????????????######???????????????? | | ??????????????????????##!!!!##??????????????? | | ??????????????????????#! !#??????????????? | | ??????????????????????# #??????????????? | | ??????????????######### #####+########## | | ??????????????# | | ??????????????# < @ | | ??????????????# l [ | | ??????????????####+############## ######### | | ???????????????? ???????????# # | | ?????????????? """ ?????????# # | | ?????????????# """"" #????????# + | | ?????????????# """"" #? ????# # | | ?????????????# """"" #T ?? + ######### | | ????????????? """ #" "?? # #?######? | | ????????????#?????? #" """ # #? #? | | ??????????????????? " """ # # """ =#? | | ?????????????????### # # # """ #? | | ????????????????## # # # ## + """ #? | | ????????????????# # # #? | | ????????????????# # # #? | | ????????????????# "# #?######? | | ????????????????# # # #???????? | | ?????????????????# # #???????? | | ??????????????????# # #???????? | | ??????????????????## # # # ## #???????? | | ??????????????????# *[ !* #???????? | | ???????????###????# [ =%[ #???????? | | ????????#### ###### = #???????? | | ????????# # ###""### #???????? | | ????????# ] # # """ # #???????? | +----------------------------------------------------+ Best States ------------- Heat Dissipation 28 Energy Generation 12 Energy Capacity 265 Matter Stores 300 Matter Capacity 350 Sight Range 16 Terrain Scan Range 16 Terrain Scan Density 10 Evasion (%) 55 Targeting Accuracy 8 Item Schematics ----------------- None Robot Schematics ------------------ None Fabricated ------------ Nothing Alien Tech Used ----------------- None Achievements -------------- None Challenges ------------ None Game ------ Seed SpikedGreatFalx Manual? 0 Play Time 00:23:10 Cumulative 18.7 hours Start 2024.06.26 @ 20:30:38 End 2024.06.26 @ 20:52:20 Sessions 1 Manual Loads 0 Difficulty Rogue Special Mode None Game No. 29 Rogue 28 Adventurer 1 Explorer 0 Win Type - Total 0 Types 0/0/0/0/0/0/0/0/0 Lore% 11 Gallery% 23 Achievement% 16 Wizard Run 0 Options --------- Layout 1 ASCII 0 Keyboard 1 Movement Numpad Keybinds 0 Fullscreen 1 Font 24/Smallcaps Map View 50x40 Zoom Use 0% Tactical HUD 1 Map Filters NONE Filters NONE Steam 1 RUN: 76e3d5a4-8fe7-44d7-9042-c6cd33d73cc4